{"text_format":"3","workbook":"xlsx","n_sheets":3,"sheets":["Danh sách học viên","Danh sách lớp học","Chi tiết học viên"],"not_rendered":{"images":2,"defined_names":8},"read":"whole","date_system":"1900"}

{"sheet":"Danh sách học viên","index":0,"n_rows":8,"n_cols":13,"rows_kept":8,"merged":[[1,2,2,3],[1,4,1,11],[2,4,2,11],[6,12,8,16]]}
[]
[null,null,"Danh sách học viên",null,"ĐI ĐẾN DANH SÁCH LỚP HỌC"]
[{"$nulls":4},"ĐI ĐẾN CHI TIẾT HỌC VIÊN"]
[null,null,"TÊN HỌC VIÊN","EMAIL","ĐIỆN THOẠI NHÀ","ĐIỆN THOẠI DI ĐỘNG","NGÀY SINH","LIÊN HỆ KHẨN CẤP","ĐIỆN THOẠI KHẨN CẤP","BÁC SĨ","ĐIỆN THOẠI BÁC SĨ","  "]
[null,null,"Tên 1","Địa chỉ email","Điện thoại nhà","Điện thoại di động","Ngày","Liên hệ 1","Điện thoại khẩn cấp","Bác sĩ 1","Điện thoại bác sĩ"]
[null,null,"Tên 2","Địa chỉ email","Điện thoại nhà","Điện thoại di động","Ngày","Liên hệ 2","Điện thoại khẩn cấp","Bác sĩ 2","Điện thoại bác sĩ"]
[null,null,"Tên 3","Địa chỉ email","Điện thoại nhà","Điện thoại di động","Ngày","Liên hệ 3","Điện thoại khẩn cấp","Bác sĩ 3","Điện thoại bác sĩ",null,"Mẹo: Để thêm học viên, hãy nhấn phím tab ở ô cuối cùng của bảng."]
[null,null,"Tên 4","Địa chỉ email","Điện thoại nhà","Điện thoại di động","Ngày","Liên hệ 4","Điện thoại khẩn cấp","Bác sĩ 4","Điện thoại bác sĩ"]

{"sheet":"Danh sách lớp học","index":1,"n_rows":12,"n_cols":7,"rows_kept":12,"merged":[[1,2,2,2],[1,3,2,3],[1,4,1,6],[2,4,2,6]]}
[]
[null,null,"Danh sách lớp học","Học viện Thiết kế Đồ họa","ĐI ĐẾN DANH SÁCH HỌC VIÊN"]
[{"$nulls":4},"ĐI ĐẾN CHI TIẾT HỌC VIÊN"]
[null,null,"KHÓA HỌC","Tên khóa học","NGÀY BẮT ĐẦU","Ngày"]
[null,null,"GIẢNG VIÊN","Giảng viên 1","NGÀY KẾT THÚC","Ngày"]
[null,null,"HỌC VIÊN ĐÃ ĐĂNG KÝ HỌC",{"$f":"COUNTA(Bản_danh_sách_học_viên[TÊN HỌC VIÊN])","v":4}]
[]
[null,null,"TÊN HỌC VIÊN","EMAIL","ĐIỆN THOẠI NHÀ","ĐIỆN THOẠI DI ĐỘNG","  "]
[null,null,"Tên 1",{"$f":"IFERROR(VLOOKUP(Bản_danh_sách_học_viên[[#This Row],[TÊN HỌC VIÊN]],Học_viên[],2),\"\")","v":"Địa chỉ email"},{"$f":"IFERROR(VLOOKUP(Bản_danh_sách_học_viên[[#This Row],[TÊN HỌC VIÊN]],Học_viên[],3),\"\")","v":"Điện thoại nhà"},{"$f":"IFERROR(VLOOKUP(Bản_danh_sách_học_viên[[#This Row],[TÊN HỌC VIÊN]],Học_viên[],4),\"\")","v":"Điện thoại di động"}]
[null,null,"Tên 2",{"$f":"IFERROR(VLOOKUP(Bản_danh_sách_học_viên[[#This Row],[TÊN HỌC VIÊN]],Học_viên[],2),\"\")","v":"Địa chỉ email"},{"$f":"IFERROR(VLOOKUP(Bản_danh_sách_học_viên[[#This Row],[TÊN HỌC VIÊN]],Học_viên[],3),\"\")","v":"Điện thoại nhà"},{"$f":"IFERROR(VLOOKUP(Bản_danh_sách_học_viên[[#This Row],[TÊN HỌC VIÊN]],Học_viên[],4),\"\")","v":"Điện thoại di động"}]
[null,null,"Tên 3",{"$f":"IFERROR(VLOOKUP(Bản_danh_sách_học_viên[[#This Row],[TÊN HỌC VIÊN]],Học_viên[],2),\"\")","v":"Địa chỉ email"},{"$f":"IFERROR(VLOOKUP(Bản_danh_sách_học_viên[[#This Row],[TÊN HỌC VIÊN]],Học_viên[],3),\"\")","v":"Điện thoại nhà"},{"$f":"IFERROR(VLOOKUP(Bản_danh_sách_học_viên[[#This Row],[TÊN HỌC VIÊN]],Học_viên[],4),\"\")","v":"Điện thoại di động"}]
[null,null,"Tên 4",{"$f":"IFERROR(VLOOKUP(Bản_danh_sách_học_viên[[#This Row],[TÊN HỌC VIÊN]],Học_viên[],2),\"\")","v":"Địa chỉ email"},{"$f":"IFERROR(VLOOKUP(Bản_danh_sách_học_viên[[#This Row],[TÊN HỌC VIÊN]],Học_viên[],3),\"\")","v":"Điện thoại nhà"},{"$f":"IFERROR(VLOOKUP(Bản_danh_sách_học_viên[[#This Row],[TÊN HỌC VIÊN]],Học_viên[],4),\"\")","v":"Điện thoại di động"}]

{"sheet":"Chi tiết học viên","index":2,"n_rows":13,"n_cols":4,"rows_kept":13,"merged":[[1,2,2,2],[1,3,1,4],[2,3,2,4],[3,2,3,3]]}
[]
[null,null,"Chi tiết học viên","ĐI ĐẾN DANH SÁCH HỌC VIÊN"]
[{"$nulls":3},"ĐI ĐẾN DANH SÁCH LỚP HỌC"]
[null,null,"MẸO: CHỌN MỘT HỌC VIÊN TỪ DANH SÁCH THẢ XUỐNG TRONG Ô D5 ĐỂ CẬP NHẬT CHI TIẾT HỌC VIÊN"]
[null,null,"TÊN HỌC VIÊN","Tên 1"]
[null,null,"EMAIL",{"$f":"IFERROR(VLOOKUP(Tên_học_viên,Học_viên[],2,FALSE),\"\")","v":"Địa chỉ email"}]
[null,null,"ĐIỆN THOẠI NHÀ",{"$f":"IFERROR(VLOOKUP(Tên_học_viên,Học_viên[],3,FALSE),\"\")","v":"Điện thoại nhà"}]
[null,null,"ĐIỆN THOẠI DI ĐỘNG",{"$f":"IFERROR(VLOOKUP(Tên_học_viên,Học_viên[],4,FALSE),\"\")","v":"Điện thoại di động"}]
[null,null,"NGÀY SINH",{"$f":"IFERROR(VLOOKUP(Tên_học_viên,Học_viên[],5,FALSE),\"\")","v":"Ngày"}]
[null,null,"LIÊN HỆ KHẨN CẤP",{"$f":"IFERROR(VLOOKUP(Tên_học_viên,Học_viên[],6,FALSE),\"\")","v":"Liên hệ 1"}]
[null,null,"ĐIỆN THOẠI KHẨN CẤP",{"$f":"IFERROR(VLOOKUP(Tên_học_viên,Học_viên[],7,FALSE),\"\")","v":"Điện thoại khẩn cấp"}]
[null,null,"BÁC SĨ",{"$f":"IFERROR(VLOOKUP(Tên_học_viên,Học_viên[],8,FALSE),\"\")","v":"Bác sĩ 1"}]
[null,null,"ĐIỆN THOẠI BÁC SĨ",{"$f":"IFERROR(VLOOKUP(Tên_học_viên,Học_viên[],9,FALSE),\"\")","v":"Điện thoại bác sĩ"}]